bitfinex/quotes_SOLUSD_20240821
["timestamp","ask_amount","ask_price","bid_price","bid_amount"]
[1724224068113,13.05,143.85,143.83,0.12549]
[1724224072421,65.25,143.85,143.83,0.12549]
[1724224073211,13.05,143.85,143.83,0.12549]
[1724224073597,16.2402,143.87,143.83,0.12549]
[1724224073811,13.05,143.84,143.83,0.12549]
[1724224076338,16.2402,143.87,143.83,0.12549]
[1724224076625,13.05,143.85,143.83,0.12549]
[1724224088809,52.2,143.92,143.83,0.12549]
[1724224089004,13.05,143.87,143.83,0.12549]
[1724224089233,67.632,143.92,143.83,1.39011813]
[1724224089234,13.05,143.85,143.83,1.39011813]
[1724224089442,13.05,143.85,143.84,0.25098]
[1724224089942,13.05,143.87,143.84,0.25098]
[1724224090119,13.05,143.87,143.85,0.25098]
[1724224093617,13.05,143.87,143.86,0.25098]
[1724224093811,13.05,143.87,143.84,0.25098]
[1724224096140,13.05,143.88,143.84,0.25098]
[1724224096350,13.05,143.88,143.83,0.25098]
[1724224097138,67.632,143.92,143.83,0.25098]
[1724224097442,13.05,143.86,143.83,0.25098]
[1724224098242,13.05,143.84,143.83,0.25098]
[1724224098432,13.05,143.84,143.83,6.30676165]
[1724224100119,13.05,143.84,143.83,26.30676165]
[1724224101051,13.05,143.84,143.83,20.25098]
[1724224101351,67.632,143.92,143.83,28.39608119]
[1724224101531,67.632,143.92,143.84,9.5352862]
[1724224101732,67.632,143.92,143.85,2.34033501]
[1724224102037,13.05,143.87,143.83,0.25098]
[1724224102237,13.05,143.87,143.86,0.12549]
[1724224102554,13.05,143.87,143.86,2.21474785]
[1724224102747,13.05,143.87,143.86,2.34023785]
[1724224103852,13.05,143.89,143.86,2.34023785]
[1724224104051,15.432,143.92,143.87,0.12549]
[1724224104268,15.432,143.92,143.87,1.51536743]
[1724224104436,15.432,143.92,143.88,0.12549]
[1724224105451,0.2017058,143.94,143.88,0.12549]
[1724224105951,0.2017058,143.94,143.88,1.51525538]
[1724224106152,0.2017058,143.94,143.89,0.12549]
[1724224106542,13.05,143.92,143.89,0.12549]
[1724224106949,0.2017058,143.94,143.89,0.12549]
[1724224109343,0.2017058,143.94,143.88,20.25098]
[1724224109652,13.05,143.9,143.88,0.25098]
[1724224109854,13.05,143.9,143.87,0.25098]
[1724224110069,13.05,143.9,143.88,2.0887292]
[1724224110253,13.05,143.9,143.89,0.25098]
[1724224110570,13.05,143.91,143.87,0.25098]
[1724224110776,13.05,143.91,143.88,2.08872905]
[1724224111062,13.05,143.91,143.9,10.44098061]
[1724224111274,13.05,143.91,143.9,28.87321867]
[1724224111450,13.05,143.91,143.9,0.25098]
[1724224112566,13.05,143.93,143.9,0.25098]
[1724224112765,13.05,143.93,143.91,0.25098]
[1724224115764,13.2517058,143.94,143.91,0.25098]
[1724224116661,13.2517058,143.94,143.92,0.25098]
[1724224116861,13.2517058,143.94,143.9,0.25098]
[1724224117067,13.05,143.92,143.9,0.25098]
[1724224117260,13.05,143.92,143.89,20.25098]
[1724224117769,13.05,143.92,143.9,10.04083696]
[1724224117974,13.05,143.92,143.91,38.82755779]
[1724224118346,13.05,143.92,143.91,28.38734495]
[1724224119463,13.05,143.92,143.91,22.3393652]
[1724224119864,13.05,143.92,143.91,28.38734495]
[1724224120065,13.05,143.92,143.91,22.3393652]
[1724224120254,13.05,143.92,143.91,2.0883852]
[1724224120568,13.2517058,143.94,143.87,6.04797975]
[1724224120751,13.2517058,143.94,143.86,6.2201]
[1724224121563,13.2517058,143.94,143.87,0.25098]
[1724224121880,13.2517058,143.94,143.86,6.2201]
[1724224122069,13.2517058,143.94,143.87,21.38975094]
[1724224122378,13.2517058,143.94,143.88,1.38975104]
[1724224122675,13.05,143.92,143.87,20.0]
[1724224123256,0.2017058,143.94,143.88,0.25098]
[1724224123449,13.2517058,143.94,143.88,1.64060565]
[1724224123650,13.2517058,143.94,143.88,0.25098]
[1724224125680,0.2017058,143.94,143.88,0.25098]
[1724224125916,13.05,143.92,143.88,0.25098]
[1724224127115,13.05,143.92,143.87,20.0]
[1724224127308,13.05,143.92,143.88,1.38969384]
[1724224127485,13.05,143.92,143.87,20.0]
[1724224128111,13.05,143.92,143.88,0.25098]
[1724224128518,0.2017058,143.94,143.88,0.25098]
[1724224128679,13.2517058,143.94,143.88,0.25098]
[1724224129978,0.2017058,143.94,143.88,0.25098]
[1724224130180,13.2517058,143.94,143.88,0.25098]
[1724224131381,0.2017058,143.94,143.88,0.25098]
[1724224134211,13.05,143.93,143.88,0.25098]
[1724224134379,0.2017058,143.94,143.87,22.08838396]
[1724224134578,13.05,143.91,143.87,22.08838396]
[1724224134781,13.05,143.91,143.87,22.08849341]
[1724224135206,13.05,143.91,143.87,20.0]
[1724224135594,13.05,143.91,143.88,0.25098]
[1724224135981,13.05,143.91,143.88,1.64066288]
[1724224136899,13.05,143.91,143.88,0.25098]
[1724224137387,13.05,143.91,143.88,1.64066638]
[1724224138905,13.05,143.91,143.88,0.25098]
[1724224139091,13.05,143.91,143.88,1.64065191]
[1724224139995,13.05,143.91,143.88,0.25098]
[1724224140299,13.05,143.91,143.88,1.6406654]
[1724224142496,13.05,143.93,143.88,1.6406654]
[1724224146421,13.05,143.93,143.89,2.08838634]
[1724224146726,13.05,143.93,143.87,26.04620865]
[1724224146727,0.2017058,143.94,143.9,1.64050185]
[1724224147726,0.2017058,143.94,143.9,0.25098]
[1724224147921,0.2017058,143.94,143.89,0.25098]
[1724224148321,0.2017058,143.94,143.88,6.29595591]
[1724224148520,0.2017058,143.94,143.89,22.08837271]
[1724224148716,0.2017058,143.94,143.9,0.25098]
[1724224149503,0.2017058,143.94,143.89,0.25098]
[1724224149697,0.2017058,143.94,143.9,2.08837221]
[1724224149931,0.2017058,143.94,143.91,0.25098]
[1724224150135,0.2017058,143.94,143.92,0.25098]
[1724224150347,0.2017058,143.94,143.9,2.08837171]
[1724224150639,0.2017058,143.94,143.91,0.25098]
[1724224151952,13.05,143.93,143.91,0.25098]
[1724224152319,0.2017058,143.94,143.91,0.25098]
[1724224152542,0.2017058,143.94,143.9,16.42438]
[1724224152718,0.2017058,143.94,143.92,0.12549]
[1724224153044,0.2017058,143.94,143.92,0.25098]
[1724224154149,0.2017058,143.94,143.92,1.64029039]
[1724224154553,0.2017058,143.94,143.92,0.25098]
[1724224154718,0.2017058,143.94,143.92,1.6402965]
[1724224155055,0.2017058,143.94,143.92,0.25098]
[1724224156116,0.2017058,143.94,143.92,1.64023181]
[1724224160852,0.2017058,143.94,143.92,0.25098]
[1724224162028,0.2017058,143.94,143.91,20.0]
[1724224162229,0.2017058,143.94,143.92,2.08806439]
[1724224162428,0.2017058,143.94,143.91,20.0]
[1724224162621,0.2017058,143.94,143.92,8.12948572]
[1724224162852,0.2017058,143.94,143.93,20.0]
[1724224163050,0.2017058,143.94,143.91,20.0]
[1724224163283,0.2017058,143.94,143.92,8.12957878]
[1724224163581,0.2017058,143.94,143.93,20.25098]
[1724224164752,0.2017058,143.94,143.93,0.25098]
[1724224165248,0.2017058,143.94,143.93,6.29225032]
[1724224165483,0.2017058,143.94,143.93,0.25098]
[1724224165658,0.2017058,143.94,143.93,8.3803031]
[1724224165861,0.2017058,143.94,143.93,28.3803031]
[1724224166187,0.2017058,143.94,143.93,22.33903278]
[1724224166380,0.2017058,143.94,143.93,8.3803031]
[1724224166760,0.2017058,143.94,143.93,28.3803031]
[1724224169871,0.2017058,143.94,143.93,51.18372721]
[1724224170072,0.2017058,143.94,143.93,20.25098]
[1724224170284,0.2017058,143.94,143.93,63.96318864]
[1724224170482,0.2017058,143.94,143.93,33.04029693]
[1724224170693,0.2017058,143.94,143.93,63.96318864]
[1724224170875,0.2017058,143.94,143.93,63.96348345]
[1724224171381,0.2017058,143.94,143.93,61.87642813]
[1724224171576,0.2017058,143.94,143.93,63.96348333]
[1724224171784,0.2017058,143.94,143.93,33.04029693]
[1724224172395,0.2017058,143.94,143.93,20.25098]
[1724224172591,0.2017058,143.94,143.93,0.25098]
[1724224172767,0.2017058,143.94,143.92,0.25098]
[1724224196922,0.2017058,143.94,143.93,8.12851536]
[1724224197120,0.2017058,143.94,143.93,28.37949536]
[1724224198323,0.2017058,143.94,143.93,27.68090306]
[1724224198624,0.2017058,143.94,143.93,28.3797699]
[1724224198826,0.2017058,143.94,143.93,20.25098]
[1724224199128,0.2017058,143.94,143.93,8.37975444]
[1724224199423,0.2017058,143.94,143.93,28.37975444]
[1724224199805,0.2017058,143.94,143.93,20.25098]
[1724224200004,0.2017058,143.94,143.93,8.37995473]
[1724224200199,0.2017058,143.94,143.93,28.37995473]
[1724224201106,0.2017058,143.94,143.93,29.76907028]
[1724224201534,0.2017058,143.94,143.93,28.37995473]
[1724224204126,0.2017058,143.94,143.93,29.76900233]
[1724224204305,0.2017058,143.94,143.93,23.72798292]
[1724224204512,0.2017058,143.94,143.93,9.77203103]
[1724224204707,0.2017058,143.94,143.93,29.77203103]
[1724224205711,0.2017058,143.94,143.93,23.72798292]
[1724224206030,0.2017058,143.94,143.93,9.77206754]
[1724224206231,0.2017058,143.94,143.93,29.77206754]
[1724224210320,0.2017058,143.94,143.93,104.80511232]
[1724224211312,0.2017058,143.94,143.93,108.27811715]
[1724224212222,0.2017058,143.94,143.93,104.80511232]
[1724224212409,0.2017058,143.94,143.93,103.41610021]
[1724224213331,0.2017058,143.94,143.93,104.80496468]
[1724224213631,0.2017058,143.94,143.93,103.41610021]
[1724224214929,0.2017058,143.94,143.93,103.40781764]
[1724224216316,0.2017058,143.94,143.93,119.68692482]
[1724224216937,0.2017058,143.94,143.93,74.68692482]
[1724224217248,0.2017058,143.94,143.93,85.10862892]
[1724224219145,0.2017058,143.94,143.93,114.1269716]
[1724224219317,0.2017058,143.94,143.93,101.23103565]
[1724224219519,0.2017058,143.94,143.93,130.10470461]
[1724224220651,0.2017058,143.94,143.93,65.10470461]
[1724224220825,0.2017058,143.94,143.93,130.10470461]
[1724224221429,0.2017058,143.94,143.93,130.10929811]
[1724224223334,0.2017058,143.94,143.93,130.10998148]
[1724224223733,0.2017058,143.94,143.93,101.23339939]
[1724224224049,0.2017058,143.94,143.93,130.11202716]
[1724224226141,0.2017058,143.94,143.93,85.11254208]
[1724224226531,0.2017058,143.94,143.93,130.11254208]
[1724224226962,0.2017058,143.94,143.93,85.11254208]
[1724224227155,0.2017058,143.94,143.93,74.69001469]
[1724224227380,0.2017058,143.94,143.93,88.72335442]
[1724224227660,0.2017058,143.94,143.93,119.69020499]
[1724224228060,0.2017058,143.94,143.93,74.69020499]
[1724224228645,0.2017058,143.94,143.93,85.11277857]
[1724224231366,0.2017058,143.94,143.93,73.51119106]
[1724224231577,0.2017058,143.94,143.93,85.10710069]
[1724224232473,0.2017058,143.94,143.93,65.10710069]
[1724224233952,0.2017058,143.94,143.93,85.10710069]
[1724224235370,0.2017058,143.94,143.93,40.25098]
[1724224235678,0.2017058,143.94,143.93,85.10059528]
[1724224235981,0.2017058,143.94,143.93,85.10063371]
[1724224237277,0.2017058,143.94,143.93,74.68098446]
[1724224239368,0.2017058,143.94,143.93,42.33860452]
[1724224239675,0.2017058,143.94,143.93,74.67333109]
[1724224240862,0.2017058,143.94,143.93,76.06226196]
[1724224241375,0.2017058,143.94,143.93,74.67333109]
[1724224242076,0.2017058,143.94,143.93,76.06226434]
[1724224242371,0.2017058,143.94,143.93,121.06226434]
[1724224242676,0.149,144.0,143.93,121.06226434]
[1724224242876,0.149,144.0,143.94,65.08896401]
[1724224243170,0.149,144.0,143.95,35.81120259]
[1724224243374,0.149,144.0,143.94,30.66661292]
[1724224243375,0.149,144.0,143.96,39.78723476]
[1724224243572,0.149,144.0,143.97,8.25037133]
[1724224243783,0.149,144.0,143.98,9.51332294]
[1724224243987,0.149,144.0,143.99,0.25098]
[1724224246487,87.6921,144.0,143.93,10.41575861]
[1724224246688,13.05,143.96,143.94,34.42663499]
[1724224246990,13.05,143.96,143.95,18.15198666]
[1724224247393,22.4421,144.0,143.95,18.15198666]
[1724224247588,22.4421,144.0,143.96,6.03916656]
[1724224247793,22.4421,144.0,143.94,16.27391566]
[1724224247963,22.4421,144.0,143.95,18.15127334]
[1724224248170,13.05,143.98,143.96,6.03889922]
[1724224248368,13.05,143.98,143.94,16.273867]
[1724224248680,22.4421,144.0,143.95,39.79083123]
[1724224248867,22.4421,144.0,143.96,7.42766911]
[1724224249096,22.4421,144.0,143.97,6.28952192]
[1724224249274,22.4421,144.0,143.97,0.25098]
[1724224249570,22.4421,144.0,143.96,0.12549]
[1724224249758,22.4421,144.0,143.97,6.03850365]
[1724224249959,22.4421,144.0,143.98,0.12549]
[1724224250159,22.4421,144.0,143.96,1.63989142]
[1724224250383,22.4421,144.0,143.97,6.03827682]
[1724224250585,15.8685,144.0,143.98,6.28822983]
[1724224250888,15.8685,144.0,143.98,0.25098]
[1724224251383,15.8685,144.0,143.97,0.25098]
[1724224251567,15.8685,144.0,143.98,6.037108]
[1724224251763,15.8685,144.0,143.99,0.25098]
[1724224251964,15.8685,144.0,143.97,0.25098]
[1724224252166,15.8685,144.0,143.98,6.03692135]
[1724224252372,15.8685,144.0,143.99,0.25098]
[1724224253591,15.8685,144.0,143.99,0.12549]
[1724224253794,15.8685,144.0,143.99,0.25098]
[1724224255186,15.8685,144.0,143.99,0.12549]
[1724224255893,15.8685,144.0,143.98,0.12549]
[1724224258079,13.05,143.99,143.98,0.12549]
[1724224258279,13.05,143.99,143.98,6.16242783]
[1724224258480,13.05,143.99,143.98,26.16242783]
[1724224258689,13.05,143.99,143.98,26.28791783]
[1724224259398,13.05,143.99,143.98,26.28793883]
[1724224259603,13.05,143.99,143.98,26.287936]
[1724224260409,13.05,143.99,143.98,6.036956]
[1724224260718,13.05,143.99,143.94,16.2700982]
[1724224261020,22.2029,144.0,143.95,18.1475371]
[1724224261196,22.2029,144.0,143.96,18.1475371]
[1724224261400,22.2029,144.0,143.97,6.03750293]
[1724224261705,22.2029,144.0,143.93,17.6780382]
[1724224261909,22.2029,144.0,143.94,34.41482018]
[1724224262222,13.05,143.97,143.95,38.14610603]
[1724224262425,13.05,143.97,143.96,8.12446972]
[1724224262604,13.05,143.97,143.96,28.12446972]
[1724224263316,13.05,143.97,143.96,38.14405221]
[1724224263527,13.05,143.97,143.96,38.14403536]
[1724224264015,13.05,143.97,143.96,28.12446972]
[1724224264191,13.05,143.97,143.96,8.12446972]
[1724224264392,13.05,143.97,143.96,18.14387946]
[1724224264591,22.2029,144.0,143.91,10.41493899]
[1724224264797,22.2029,144.0,143.92,35.81425761]
[1724224264798,13.05,143.97,143.92,35.81425761]
[1724224265027,13.05,143.97,143.93,35.81418494]
[1724224265228,13.05,143.97,143.94,18.15136127]
[1724224265398,13.05,143.97,143.95,6.03879921]
[1724224265597,13.05,143.97,143.91,10.41493899]
[1724224265801,13.05,143.97,143.92,5.55816503]
[1724224266101,13.05,143.97,143.93,19.78931435]
[1724224266297,13.05,143.97,143.94,18.1491405]
[1724224266512,22.2029,144.0,143.95,7.55268568]
[1724224266709,22.2029,144.0,143.96,1.38910334]
[1724224266923,22.2029,144.0,143.95,0.12549]
[1724224267109,22.2029,144.0,143.93,1.64008505]
[1724224267306,22.2029,144.0,143.94,18.14923789]
[1724224267620,13.05,143.99,143.95,39.78675565]
[1724224267827,13.05,143.99,143.96,6.03803477]
[1724224268012,13.05,143.99,143.97,20.25098]
[1724224268317,13.05,143.99,143.95,21.63997139]
[1724224268525,13.05,143.99,143.96,9.5114207]
[1724224268712,13.05,143.99,143.97,26.28588696]
[1724224268911,13.05,143.99,143.97,20.25098]
[1724224269297,13.05,143.99,143.97,0.25098]
[1724224269719,15.8685,144.0,143.97,0.25098]
[1724224269911,15.8685,144.0,143.97,1.63985726]
[1724224270511,15.8685,144.0,143.97,0.25098]
[1724224271101,15.8685,144.0,143.98,0.25098]
[1724224271309,15.8685,144.0,143.96,0.25098]
[1724224271527,15.8685,144.0,143.97,6.03243279]
[1724224271713,15.8685,144.0,143.98,20.25098]
[1724224271916,15.8685,144.0,143.98,20.0]
[1724224272224,15.8685,144.0,143.99,0.25098]
[1724224272915,0.149,144.0,143.99,0.25098]
[1724224274011,0.149,144.0,143.95,22.69768214]
[1724224274012,0.149,144.0,143.98,0.25098]
[1724224274215,13.199,144.0,143.98,0.25098]
[1724224274614,13.199,144.0,143.99,6.28143533]
[1724224274827,13.199,144.0,143.99,6.03045533]
[1724224275024,0.149,144.0,143.99,6.28143533]
[1724224278529,0.149,144.0,143.99,0.25098]
[1724224280312,1e-08,144.0,143.99,6.27808009]
[1724224280512,13.05,144.02,143.99,6.27808009]
[1724224280513,15.0629,144.04,143.99,29.75377182]
[1724224280721,13.05,144.02,144.0,26.27808009]
[1724224280928,13.05,144.02,144.01,1.38863066]
[1724224281134,13.05,144.02,144.01,1.63961066]
[1724224281335,6.5034,144.07,144.01,0.25098]
[1724224281524,6.5034,144.07,144.02,0.25098]
[1724224282146,6.5034,144.07,144.03,0.25098]
[1724224282450,6.5034,144.07,144.01,0.25098]
[1724224282622,13.05,144.04,144.01,0.25098]
[1724224284529,6.5034,144.07,144.01,0.25098]
[1724224284831,13.05,144.07,144.02,21.62540693]
[1724224285154,13.05,144.07,144.03,21.63917804]
[1724224285328,13.05,144.07,144.03,20.25098]
[1724224287953,13.05,144.05,144.03,0.25098]
[1724224288337,13.05,144.05,144.02,0.25098]
[1724224292747,13.05,144.03,144.02,0.25098]
[1724224293134,13.05,144.03,144.0,22.72860111]
[1724224293461,16.6419,144.07,144.0,22.72860111]
[1724224294561,13.05,144.03,144.01,0.25098]
[1724224294965,0.8566729,144.08,144.01,0.25098]
[1724224297645,13.05,144.02,144.0,20.0]
[1724224297851,13.05,144.02,143.97,13.46265013]
[1724224297852,13.05,144.02,143.98,20.0]
[1724224298059,13.05,144.0,143.98,20.0]
[1724224299556,13.05,144.0,143.99,0.25098]
[1724224301349,13.05,144.0,143.98,0.25098]
[1724224305674,13.05,144.0,143.98,0.12549]
[1724224306290,15.9363,144.05,143.98,0.12549]
[1724224306469,13.05,144.0,143.97,0.25098]
[1724224306667,13.05,144.0,143.97,0.12549]
[1724224307299,13.05,144.0,143.96,0.12549]
[1724224308295,13.05,144.0,143.96,0.25098]
[1724224312478,13.05,144.01,143.96,1.63997029]
[1724224313695,13.05,144.01,143.96,0.25098]
[1724224314590,15.9363,144.05,143.96,0.25098]
[1724224315306,45.0,144.04,143.96,0.25098]
[1724224315518,13.05,143.99,143.96,0.25098]
[1724224317698,13.05,143.97,143.94,7.26343803]
[1724224317910,52.2,143.99,143.94,7.26343803]
[1724224318079,52.2,143.99,143.92,6.03407445]
[1724224318080,13.05,143.95,143.92,6.03407445]
[1724224318273,52.2,143.99,143.91,2.08786248]
[1724224318499,52.2,143.99,143.92,6.0342173]
[1724224318702,52.2,143.99,143.9,16.27057743]
[1724224319005,13.05,143.93,143.91,6.03468991]
[1724224319226,13.05,143.93,143.9,16.27057743]
[1724224319506,13.05,143.93,143.91,6.03482245]
[1724224319678,13.05,143.93,143.92,20.0]
[1724224320007,13.05,143.93,143.91,20.0]
[1724224320189,13.05,143.95,143.91,20.0]
[1724224320617,13.05,143.95,143.92,0.25098]
[1724224327620,13.05,143.93,143.92,0.25098]
[1724224330522,13.05,143.93,143.91,0.25098]
[1724224330729,13.05,143.93,143.92,0.12549]
[1724224331347,13.05,143.93,143.9,0.12549]
[1724224331635,16.658,143.95,143.86,6.04193395]
[1724224331841,13.05,143.88,143.85,1.21111459]
[1724224332045,13.05,143.86,143.82,6.3172]
[1724224332554,13.05,143.86,143.81,7.25991906]
[1724224333020,13.05,143.86,143.81,1.2114076]
[1724224333542,13.05,143.84,143.8,6.04851146]
[1724224334045,13.05,143.84,143.76,15.1213]
[1724224334225,13.05,143.84,143.77,6.05287241]
[1724224334550,13.05,143.84,143.76,6.05287241]
[1724224334731,13.05,143.81,143.75,34.3491482]
[1724224335237,13.05,143.81,143.76,0.25098]
[1724224335557,13.05,143.81,143.75,32.26108568]
[1724224336139,13.05,143.81,143.76,20.0]
[1724224336664,13.05,143.81,143.77,0.25098]
[1724224338638,13.05,143.79,143.77,0.25098]
[1724224339345,13.05,143.79,143.76,0.25098]
[1724224341168,13.05,143.81,143.76,0.25098]
[1724224341465,13.05,143.81,143.76,1.64172774]
[1724224341843,13.05,143.81,143.76,0.25098]
[1724224342163,13.05,143.81,143.77,20.0]
[1724224342377,29.1455,143.83,143.78,20.25098]
[1724224342551,13.05,143.83,143.79,1.39054495]
[1724224342873,13.05,143.83,143.8,1.39051547]
[1724224343156,13.05,143.83,143.81,0.25098]
[1724224343739,13.05,143.83,143.8,0.25098]
[1724224343942,13.05,143.83,143.79,0.25098]
[1724224345255,13.05,143.85,143.79,0.25098]
[1724224345560,13.05,143.85,143.79,1.64139773]
[1724224345955,13.05,143.85,143.79,0.25098]
[1724224347766,13.05,143.85,143.79,20.25098]
[1724224348067,16.4103,143.87,143.8,21.39036564]
[1724224348369,29.4603,143.87,143.81,0.12549]
[1724224348571,29.4603,143.87,143.81,0.25098]
[1724224348862,29.4603,143.87,143.81,1.64121052]
[1724224349066,29.4603,143.87,143.81,0.25098]
[1724224350666,29.4603,143.87,143.81,1.64121394]
[1724224351042,29.4603,143.87,143.81,0.25098]
[1724224351863,13.05,143.87,143.81,20.25098]
[1724224352062,13.05,143.87,143.82,20.0]
[1724224352266,13.05,143.87,143.83,0.25098]
[1724224352471,13.05,143.87,143.81,0.25098]
[1724224357262,13.05,143.85,143.81,0.25098]
[1724224358170,13.05,143.85,143.81,20.25098]
[1724224358460,13.05,143.85,143.79,20.0]
[1724224359462,13.05,143.85,143.79,22.7605841]
[1724224359650,13.05,143.85,143.8,0.25098]
[1724224360560,13.05,143.87,143.8,0.25098]
[1724224361959,15.8472,143.86,143.79,22.7605841]
[1724224363057,15.8472,143.86,143.8,0.12549]
[1724224363252,15.8472,143.86,143.8,0.25098]
[1724224363884,13.05,143.85,143.76,33.50125817]
[1724224364181,13.05,143.85,143.77,13.05]
[1724224365050,13.05,143.85,143.78,0.12549]
[1724224365258,13.05,143.85,143.78,0.25098]
[1724224365459,13.05,143.85,143.78,20.25098]
[1724224365669,15.8472,143.86,143.78,20.25098]
[1724224367088,13.05,143.85,143.78,20.0]
[1724224367293,45.0,143.84,143.76,20.0]
[1724224368376,45.0,143.84,143.76,26.05641356]
[1724224368573,45.0,143.84,143.77,13.30098]
[1724224368773,45.0,143.84,143.78,20.0]
[1724224371575,45.0,143.84,143.77,6.30739203]
[1724224371802,45.0,143.84,143.78,20.0]
[1724224372303,45.0,143.84,143.77,39.3573928]
[1724224373177,45.0,143.84,143.78,6.0564128]
[1724224373378,45.0,143.84,143.79,20.0]
[1724224374390,45.0,143.84,143.78,26.05641127]
[1724224374600,45.0,143.84,143.78,20.0]
[1724224375186,45.0,143.84,143.79,6.05641203]
[1724224375386,45.0,143.84,143.8,20.0]
[1724224375697,45.0,143.84,143.79,6.0564105]
[1724224375996,45.0,143.84,143.8,20.0]
[1724224376194,45.0,143.84,143.79,2.08957374]
[1724224376379,45.0,143.84,143.8,6.05641127]
[1724224376584,45.0,143.84,143.79,2.08957364]
[1724224376819,45.0,143.84,143.8,6.05645081]
[1724224377095,45.0,143.84,143.79,2.08958675]
[1724224377399,45.0,143.84,143.8,8.14598772]
[1724224377593,45.0,143.84,143.81,6.05641293]
[1724224377798,45.0,143.84,143.79,10.05379248]
[1724224377988,45.0,143.84,143.8,28.14598685]
[1724224378188,45.0,143.84,143.81,6.05641284]
[1724224378491,45.0,143.84,143.79,10.05385187]
[1724224378682,45.0,143.84,143.8,28.1460345]
[1724224378883,45.0,143.84,143.81,6.05644831]
[1724224379086,45.0,143.84,143.8,20.0]
[1724224379278,45.0,143.84,143.81,6.05644907]
[1724224379477,45.0,143.84,143.79,10.05385364]
[1724224379699,45.0,143.84,143.8,28.14602929]
[1724224379897,45.0,143.84,143.81,6.05644439]
[1724224380090,45.0,143.84,143.8,20.0]
[1724224380287,45.0,143.84,143.81,6.05644362]
[1724224380602,45.0,143.84,143.78,36.32077961]
[1724224380603,45.0,143.84,143.79,10.0538529]
[1724224380797,45.0,143.84,143.8,28.14603654]
[1724224380998,45.0,143.84,143.81,6.05644984]
[1724224381195,45.0,143.84,143.8,20.0]
[1724224381397,45.0,143.84,143.81,6.05644843]
[1724224381709,45.0,143.84,143.79,10.05385383]
[1724224381909,45.0,143.84,143.8,28.14603586]
[1724224382205,45.0,143.84,143.81,6.05644933]
[1724224382387,45.0,143.84,143.78,26.37464534]
[1724224382589,45.0,143.84,143.79,38.19988734]
[1724224382789,45.0,143.84,143.8,8.14603424]
[1724224383003,45.0,143.84,143.81,6.05644811]
[1724224383197,45.0,143.84,143.78,26.37464534]
[1724224383500,45.0,143.84,143.79,38.19989353]
[1724224383710,45.0,143.84,143.8,8.14603719]
[1724224383912,45.0,143.84,143.81,6.05645041]
[1724224384119,45.0,143.84,143.78,26.37464441]
[1724224384321,45.0,143.84,143.79,38.19988945]
[1724224384487,45.0,143.84,143.8,8.14603687]
[1724224384810,45.0,143.84,143.81,6.05645009]
[1724224384984,45.0,143.84,143.78,26.37464264]
[1724224385187,45.0,143.84,143.79,38.19984059]
[1724224385389,45.0,143.84,143.8,8.14598853]
[1724224385691,45.0,143.84,143.81,6.05641372]
[1724224386009,45.0,143.84,143.79,20.0]
[1724224386217,45.0,143.84,143.8,8.14603586]
[1724224386504,45.0,143.84,143.81,6.05644933]
[1724224386716,45.0,143.84,143.79,20.0]
[1724224386885,28.8985,143.83,143.8,8.14603381]
[1724224387084,6.2342,143.82,143.77,3.4808453]
[1724224387287,51.2342,143.82,143.78,8.14706011]
[1724224387501,51.2342,143.82,143.76,20.0]
[1724224387807,51.2342,143.82,143.77,18.20229564]
[1724224388021,51.2342,143.82,143.78,26.05746131]
[1724224388218,51.2342,143.82,143.78,20.0]
[1724224388708,51.2342,143.82,143.77,20.0]
[1724224389014,51.2342,143.82,143.78,6.05745671]
[1724224389191,51.2342,143.82,143.77,10.0555057]
[1724224389392,51.2342,143.82,143.78,26.05745748]